Cogmind - Beta 16 --- EXPLORER MODE // 2025.12.12 @ 15:27:26 Player: K.K.Y. Result: Destroyed by 57-BT2(R) with Subdweller Laser Performance ------------- Evolutions (0) 0 Regions Visited (3) 600 Robots Destroyed (38) 190 Value Destroyed (923) 923 Prototype IDs (19) 380 Alien Tech Used (0) 0 Bonus (0) 0 TOTAL SCORE: 2093 Bonus ------- None Cogmind --------- Core Integrity 0/250 Matter 300/300 Energy 270/280 System Corruption 0% Temperature Cool (22) Movement Treading (250) Ox1 Location -10/Subcaves Parts ------- > --- POWER (1) -------- Cooled Ion Engine > --- PROPULSION (3) --- Light Treads Spiked Treads > --- UTILITY (2) ------ High-capacity Storage Unit > --- WEAPON (2) ------- Pulse Rifle Enhanced Flamer > --- INVENTORY (20) --- Cooled Ion Engine Cooled Ion Engine Light Deuterium Engine Arachnoskeleton Humpback Structural Scanner Improved Sensor Array Target Analyzer Actuator Array Makeshift Laser Barrage Gun Slug Cannon Mining Laser Peak State ------------ > --- POWER ------------ Cooled Ion Engine > --- PROPULSION ------- Wheel Wheel Compact Wheel > --- UTILITY ---------- Improved Heat Sink High-capacity Storage Unit > --- WEAPON ----------- Particle Cannon Ion Cannon > --- INVENTORY -------- Cooled Ion Engine Cooled Ion Engine Cooled Ion Engine Light Deuterium Engine Light Treads Spiked Treads Arachnoskeleton Structural Scanner Improved Sensor Array Target Analyzer Actuator Array Pulse Rifle Pulse Rifle Slug Cannon Mining Laser Enhanced Flamer [Rating: 21] Favorites ----------- Power Cooled Ion Engine Engine Cooled Ion Engine Power Core Light Nuclear Core Propulsion Wheel Treads Spiked Treads Wheel Wheel Utility Improved Heat Sink Device Improved Heat Sink Storage High-capacity Storage Unit Weapon Particle Cannon Energy Gun Pulse Rifle Energy Cannon Particle Cannon Ballistic Gun Light Assault Rifle Special Weapon Enhanced Flamer Build | -11 -10 -10 -10 ------- Run | Yrd Mat Min Sub Slots Evolved 1 | . 1 . . Power . | . . . . Propulsion 1 | . 1 . . Utility . | . . . . Weapon . | . . . . Parts Attached 27 | 5 14 2 6 Power 4 | 1 2 . 1 Engine 3 | 1 1 . 1 Core 1 | . 1 . . Reactor . | . . . . Propulsion 8 | 2 4 . 2 Treads 2 | . . . 2 Leg . | . . . . Wheel 6 | 2 4 . . Hover . | . . . . Flight . | . . . . Utility 4 | . 3 1 . Device 2 | . 2 . . Storage 2 | . 1 1 . Processor . | . . . . Hackware . | . . . . Protection . | . . . . Artifact . | . . . . Weapon 11 | 2 5 1 3 Energy Gun 6 | 1 3 . 2 Energy Cannon 3 | . 2 1 . Ballistic Gun 1 | 1 . . . Ballistic Cannon . | . . . . Launcher . | . . . . Special Weapon 1 | . . . 1 Impact Weapon . | . . . . Slashing Weapon . | . . . . Piercing Weapon . | . . . . Special Melee Weapon . | . . . . Unidentified Prototypes . | . . . . Parts Lost 8 | . . . 8 Power 1 | . . . 1 Propulsion 3 | . . . 3 Utility 1 | . . . 1 Weapon 3 | . . . 3 Highest Loss Streak 3 | . . . 3 To Critical Strikes 1 | . . . 1 Average Backups 11 | 1 5 8 14 Power 3 | . 1 3 3 Propulsion 1 | . . . 2 Utility 3 | . 1 2 4 Weapon 3 | . 1 3 4 Tool/Special . | . . . . Unused Backups 17 | . 3 1 13 Power 3 | . . . 3 Propulsion 3 | . 2 . 1 Utility 5 | . 1 . 4 Weapon 6 | . . 1 5 Tool/Special . | . . . . Average Slot Usage (%) 90 | . 92 100 88 Engine 10 | . 6 12 11 Core 1 | . 4 . . Treads 1 | . . . 1 Wheel 31 | . 34 37 28 Device 9 | . 15 12 7 Storage 10 | . 5 12 12 Energy Gun 6 | . 18 . 3 Energy Cannon 17 | . 5 25 20 Peak Build Rating 21 | 5 15 17 21 Average Rating 16 | 2 12 15 18 On Entrance 9 | . 5 15 17 Avg Prop Armor Cover (%) . | . . . . Naked Turns 1 | . 1 . . Heaviest Build 59 | 5 22 59 59 Greatest Support 40 | 20 36 36 40 Greatest Overweight (x) 3 | 1 1 1 3 Average Overweight (x) . | . . . 1 Largest Inventory Capacity 20 | 5 8 20 20 Average Capacity 15 | 5 6 11 20 Most Carried 20 | 4 8 11 20 Average Carried 12 | 1 5 8 16 Final Capacity 20 | 5 8 20 20 Final Carried 16 | 2 8 11 16 Class Distribution -------------------- 86% | Hacker-Mutant 13% | Scavenger-Mutant Dominant Class ---------------- Scavenger-Mutant | -10/Materials Hacker-Mutant | -10/Mines Hacker-Mutant | -10/Subcaves Resources | -11 -10 -10 -10 ----------- Run | Yrd Mat Min Sub Matter Collected 552 | 253 229 20 50 Remotely . | . . . . Salvage Created 1398 | 84 577 129 608 Parts 69 | 6 39 4 20 Haulers Intercepted 2 | . 2 . . Recyclers Shooed . | . . . . Parts Field Recycled . | . . . . Retrieved Matter . | . . . . Parts Self-Destructed . | . . . . Prevented . | . . . . Parts Restored . | . . . . Kills | -11 -10 -10 -10 ------- Run | Yrd Mat Min Sub Combat Hostiles Destroyed 22 | . 7 . 15 Guns 13 | . 7 . 6 Cannons 8 | . . . 8 Classes Destroyed 11 | 2 6 . 3 Worker 5 | . 5 . . Builder 2 | . 2 . . Tunneler 1 | 1 . . . Hauler 2 | . 2 . . Recycler 3 | 1 1 1 . Watcher 3 | . 3 . . Swarmer 2 | . 2 . . Grunt 5 | . 5 . . Sentry 1 | . . . 1 Artisan 2 | . . . 2 Subdweller 14 | . . . 14 Best Kill Streak 8 | 2 8 1 2 Combat Bots Only 3 | . 3 . 2 Max Kills in Single Turn 2 | 1 2 1 1 Gunslinging 1 | . 1 . . Exploded . | . . . . Melee . | . . . . Uniques/NPCs Destroyed . | . . . . Combat | -11 -10 -10 -10 -------- Run | Yrd Mat Min Sub Hostile Shots Fired 130 | . 25 4 101 Missed 31 | . 5 1 25 Hits 99 | . 20 3 76 Projectile 99 | . 20 3 76 AOE 1 | . . . 1 Critical Strikes 4 | . 1 . 3 Damage Taken 1236 | . 140 25 1071 Core 250 | . 27 7 216 Absorbed by Shields . | . . . . Ignored by Resistances 740 | . 91 16 633 Core Remaining (%) 100 | 100 . . . Volleys Fired 284 | 3 38 6 237 Largest 2 | 2 2 2 2 Hottest 143 | 60 115 136 143 Shots Fired 560 | 6 75 12 467 Gun 127 | 6 75 . 46 Cannon 428 | . . 12 416 Launcher . | . . . . Special 5 | . . . 5 Kinetic 12 | 3 9 . . Thermal 548 | 3 66 12 467 Explosive . | . . . . Electromagnetic . | . . . . Robot Hit Streak 35 | 4 23 14 35 Robot Miss Streak 2 | . 2 1 1 Penetration Max . | . . . . Secondary Targets 1 | . 1 . . Max Gunslinging Chain 1 | . 1 . . Shots Hit Robots 191 | 4 62 10 115 Core Hits 65 | 3 32 2 28 Critical Kills 1 | . . 1 . Critical Parts Destroyed . | . . . . Critical Strikes 5 | . 2 1 2 Burn 4 | . 2 . 2 Meltdown 1 | . . 1 . Melee Attacks . | . . . . Impact . | . . . . Slashing . | . . . . Piercing . | . . . . Sneak Attacks . | . . . . Combat Hostiles . | . . . . Follow-up Attacks . | . . . . Damage Inflicted 3185 | 39 787 203 2156 Guns 1396 | 39 787 . 570 Cannons 1737 | . . 203 1534 Explosions . | . . . . Melee . | . . . . Ramming . | . . . . Kinetic 81 | 29 52 . . Thermal 3104 | 10 735 203 2156 Explosive . | . . . . Electromagnetic . | . . . . Impact . | . . . . Slashing . | . . . . Piercing . | . . . . Highest Corruption . | . . . . Average Corruption . | . . . . Corruption Purged . | . . . . Corruption Blocked . | . . . . Overload Shots . | . . . . Overflow Damage 16 | . . 16 . Projectiles 16 | . . 16 . Explosions . | . . . . Melee . | . . . . Knockbacks . | . . . . Impact . | . . . . Kinetic . | . . . . Secondary . | . . . . Self-Inflicted Damage . | . . . . Shots . | . . . . Rammed . | . . . . Targets Rammed . | . . . . Kicked . | . . . . Crushed . | . . . . Highest Temperature 178 | 40 76 81 178 Average Temperature 22 | 21 24 37 18 Received Heat Transfer 617 | . 114 18 485 Siege Activations . | . . . . Martial Activations . | . . . . Shielding Activations . | . . . . Robots Disrupted . | . . . . Combat Hostiles . | . . . . Robots Corrupted . | . . . . Combat Hostiles . | . . . . Parts Fried . | . . . . Impact Corruptions . | . . . . Robots Melted 2 | . . 1 1 Combat Hostiles 1 | . . . 1 Parts Melted 11 | . 3 . 8 Heat Transferred 6848 | 25 1897 370 4556 Parts Sabotaged . | . . . . Parts Stolen . | . . . . Parts Stripped . | . . . . Power Chain Reactions . | . . . . Alert | -11 -10 -10 -10 ------- Run | Yrd Mat Min Sub Maximum Alert Level . | . . . . Low Security (%) 100 | 100 100 100 . Level 1 . | . . . . Level 2 . | . . . . Level 3 . | . . . . Level 4 . | . . . . Level 5 . | . . . . High Security . | . . . . Max Security . | . . . . Peak Influence 79 | 5 79 30 . Initial . | . . . . Average 10 | 1 16 . . Influence Increases 340 | 10 265 45 20 Destroy 0b10 Robot/C 160 | . 140 . 20 Destroy 0b10 Robot/NC 90 | 10 65 15 . Destroy Leader 40 | . 40 . . Successful Hack 15 | . 15 . . Disable Machine 4 | . 4 . . Destroy Structure 1 | . 1 . . Lose Combat Pursuer 30 | . . 30 . Influence Decreases 340 | 10 265 15 50 Entered New Map 20 | . . . 20 Time Decay 320 | 10 265 15 30 Squads Dispatched 1 | . . 1 . Investigation 1 | . . 1 . Extermination . | . . . . Reinforcement . | . . . . Assault . | . . . . Garrison . | . . . . Intercept . | . . . . Searches Triggered . | . . . . Construction Impeded . | . . . . Haulers Reinforced . | . . . . Active Scanning Responses . | . . . . Cargo Convoy Interrupts . | . . . . Stealth | -11 -10 -10 -10 --------- Run | Yrd Mat Min Sub Distress Signals . | . . . . Communications Jammed . | . . . . Distress Signals . | . . . . Times Spotted 28 | . 10 2 16 Peak Tracking Total 3 | . 3 2 2 Tactical Retreats 1 | . . 1 . Traps | -11 -10 -10 -10 ------- Run | Yrd Mat Min Sub Traps Triggered 5 | . 5 . . Indirectly . | . . . . Trap Hack Attempts . | . . . . Triggered . | . . . . Disarmed . | . . . . Reprogrammed . | . . . . Reused . | . . . . Traps Extracted . | . . . . Installed . | . . . . Triggered . | . . . . Machines | -11 -10 -10 -10 ---------- Run | Yrd Mat Min Sub Machines Disabled 2 | . 1 . 1 Max in Single Turn 1 | . 1 . 1 Machines Repaired . | . . . . Machines Dismantled . | . . . . Machines Sabotaged . | . . . . Overloaded Fab Kills . | . . . . Hacking | -11 -10 -10 -10 --------- Run | Yrd Mat Min Sub Machines Accessed 10 | . 7 1 2 Terminals 5 | . 5 . . Fabricators . | . . . . Repair Stations . | . . . . Recycling Units 2 | . 2 . . Scanalyzers . | . . . . Garrison Access . | . . . . Total Hacks 20 | . 15 1 4 Successful 17 | . 12 1 4 Failed 3 | . 3 . . Catastrophic . | . . . . Database Lockouts . | . . . . Manual 9 | . 9 . . Terminals 10 | . 10 . . Fabricators . | . . . . Repair Stations . | . . . . Recycling Units 5 | . 5 . . Scanalyzers . | . . . . Garrison Access . | . . . . Terminal Hacks 11 | . 6 1 4 Record 3 | . . . 3 Robot Analysis 1 | . 1 . . Prototype ID Bank 5 | . 5 . . Open Door 1 | . . 1 . Proto ID Catalog 1 | . . . 1 Fabricator Hacks . | . . . . Repair Station Hacks . | . . . . Recycling Unit Hacks 3 | . 3 . . Retrieve Components 3 | . 3 . . Scanalyzer . | . . . . Garrison Access Hacks . | . . . . Unauthorized Hacks 3 | . 3 . . Terminals 3 | . 3 . . Botnet 3 | . 3 . . Fabricators . | . . . . Repair Stations . | . . . . Recycling Units . | . . . . Scanalyzers . | . . . . Garrison Access . | . . . . Data Cores Recovered . | . . . . Used . | . . . . Hacking Detections 1 | . 1 . . Full Trace Events . | . . . . Feedback Events . | . . . . Feedback Blocked . | . . . . Robot Schematics Acquired . | . . . . Robots Built . | . . . . Authchips . | . . . . Time . | . . . . Total Robot Build Rating . | . . . . Part Schematics Acquired . | . . . . Parts Built . | . . . . Authchips . | . . . . Time . | . . . . Total Part Build Rating . | . . . . Part Studies Acquired . | . . . . Parts Repaired . | . . . . Time . | . . . . Parts Recycled . | . . . . Recycled Matter . | . . . . Retrieved Matter . | . . . . Retrieved Components 13 | . 13 . . Parts Scanalyzed . | . . . . Part Schematics Acquired . | . . . . Parts Damaged . | . . . . Bothacking | -11 -10 -10 -10 ------------ Run | Yrd Mat Min Sub Used RIF Installer . | . . . . Robots Hacked . | . . . . Non-combat . | . . . . Combat . | . . . . Robot Hacks Applied . | . . . . Relay Couplers Released . | . . . . Fabnet Peak Effective % . | . . . . Robots Rewired . | . . . . Allies Hacked . | . . . . Hacks Repelled . | . . . . Allies | -11 -10 -10 -10 -------- Run | Yrd Mat Min Sub Total Allies . | . . . . Largest Group . | . . . . Highest-Rated Group . | . . . . Highest-Rated Ally . | . . . . Total Orders . | . . . . Ally Attacks . | . . . . Total Damage . | . . . . Kills . | . . . . Allies Corrupted . | . . . . Allies Melted . | . . . . Intel | -11 -10 -10 -10 ------- Run | Yrd Mat Min Sub Active Infowar (turns) 256 | . 256 . . Structural 256 | . 256 . . Robot Analysis Total 1 | . 1 . . Derelict Logs Recovered 2 | . . 1 1 Drone Launches . | . . . . Drone Recoveries . | . . . . Exploration | -11 -10 -10 -10 ------------- Run | Yrd Mat Min Sub Turns Passed 3744 | 53 815 477 2399 Spaces Moved 2693 | 39 728 498 1428 Core 32 | 29 3 . . Treads 61 | . . . 61 Legs . | . . . . Wheels 2600 | 10 725 498 1367 Hover . | . . . . Flight . | . . . . Fastest Speed 50 | 50 50 86 101 Average Speed 101 | 76 83 90 115 Slowest Speed 250 | 100 100 101 250 Overloaded Moves . | . . . . Propulsion Burnouts . | . . . . Robots Hopped . | . . . . Potential Cave-ins 13 | . . . 13 Cave-ins Triggered . | . . . . Exploration Rate (%) 66 | 4 99 85 77 Regions Visited 3 Branch Regions 2 Pre-discovered Areas 1 | . . . 1 Known Exits Taken 3 | 1 1 1 . Unknown Exits Taken . | . . . . Scrap Searched 2 | . . . 2 Spaces Dug 184 | . . . 184 Terrain Destroyed 186 | . . . 186 Melee . | . . . . Projectile 186 | . . . 186 AOE . | . . . . Terrain Rammed . | . . . . Walls Destroyed . | . . . . Machines Disabled . | . . . . Actions | -11 -10 -10 -10 --------- Run | Yrd Mat Min Sub Total 3139 | 56 858 515 1710 Wait 70 | 3 38 . 29 Move 2690 | 38 727 497 1428 Hop . | . . . . Pick Up 41 | 7 19 6 9 Fast Attach 10 | . 10 . . Attach 15 | 5 4 . 6 Detach 1 | . 1 . . Swap 10 | . 8 2 . Drop 18 | . 13 4 1 Fire 284 | 3 38 6 237 Melee . | . . . . Ram . | . . . . Kick . | . . . . Crush . | . . . . Escape Stasis . | . . . . Rewire . | . . . . Trap . | . . . . Miscellaneous . | . . . . Route ------- -11/Scrapyard -10/Materials (discovered 4 exits: *Mat x3 / *Min) -10/Mines (discovered 4 exits: *Mat x2 / *Exi / *Sub) -10/Subcaves (discovered 1 exit: *Mat) History --------- Turn | Location | Event 4 | -11/Scrapyard | Identified exit to Materials 4 | -11/Scrapyard | Discovered exit to Materials (range 16) 54 | -11/Scrapyard | Entered Materials 54 | -10/Materials | Evolved 1 slot: Propulsion x1 320 | -10/Materials | Identified exit to Mines 320 | -10/Materials | Discovered exit to Mines (range 16) 415 | -10/Materials | Build established: Scavenger-Mutant 472 | -10/Materials | Identified exit to Materials 472 | -10/Materials | Discovered exit to Materials (range 11) 716 | -10/Materials | Discovered exit to Materials (range 16) 780 | -10/Materials | Discovered exit to Materials (range 5) 869 | -10/Materials | Entered Mines 926 | -10/Mines | Found a hidden stash of uninstalled traps 989 | -10/Mines | Deemed a non-threat by the Exiles lab entrance 989 | -10/Mines | Identified exit to Exiles 989 | -10/Mines | Discovered exit to Exiles (range 5) 996 | -10/Mines | Build established: Hacker-Mutant 1077 | -10/Mines | Discovered exit to Materials (range 7) 1127 | -10/Mines | Identified exit to Subcaves 1127 | -10/Mines | Discovered exit to Subcaves (range 6) 1183 | -10/Mines | Met a Derelict shopkeep closing up shop 1247 | -10/Mines | Discovered exit to Materials (range 11) 1346 | -10/Mines | Entered Subcaves 1347 | -10/Subcaves | Approached by a straggling Scientist 1518 | -10/Subcaves | Shifting Twisted Machinery released Sub. Machine Gun 1910 | -10/Subcaves | Visited 4L-MR0's lab 1923 | -10/Subcaves | Found Arachnoskeleton 1962 | -10/Subcaves | A swath of the cavern ceiling suddenly collapsed 2320 | -10/Subcaves | Shifting Twisted Machinery released Enh. Flamer 2325 | -10/Subcaves | Shifting Twisted Machinery released Slug Cannon 2368 | -10/Subcaves | Visited Clippyterm 2371 | -10/Subcaves | Learned Factory stockpile data 2474 | -10/Subcaves | Learned location of Zion (-6) 2480 | -10/Subcaves | Identified exit to Materials 2480 | -10/Subcaves | Discovered exit to Materials (range 6) 2798 | -10/Subcaves | Ambushed by Subdweller buried in earth 2866 | -10/Subcaves | Ambushed by Subdweller buried in earth 3006 | -10/Subcaves | Ambushed by Subdweller buried in earth 3069 | -10/Subcaves | Core integrity fell below 50% 3254 | -10/Subcaves | Disturbed a concealed Subdweller 3590 | -10/Subcaves | Lost 3 parts (1n2w) 3593 | -10/Subcaves | A swath of the cavern ceiling suddenly collapsed 3710 | -10/Subcaves | Core integrity fell below 20% 3745 | -10/Subcaves | Destroyed by 57-BT2(R) with Subdweller Laser Last Messages --------------- 03391_ 14-CR0(u) destroyed. 03501_ KM-9E7(u) cries out in pain. 03501_ KM-9E7(u) destroyed. 03530_ BQ-WVE(R) suffers critical hit (Burn). 03530_ Pulse Rifle destroyed. 03540_ RA-2RG(R): "MADSUB!" 03540_ BQ-WVE(R) destroyed. 03551_ Com. Wheel destroyed. 03559_ Particle Cannon destroyed. 03565_ RA-2RG(R) destroyed. 03576_ Acquired 22 matter. 03591_ Acquired 8 matter. 03593_ Wheel crushed. A swath of the cavern ceiling suddenly collapses. 03709_ V0-4HJ(R): "SUBHATE!" 03715_ V0-4HJ(R) destroyed. 03739_ P2-04L(R) suffers critical hit (Burn). 03739_ P2-04L(R) critical meltdown. 03739_ Sub. Monowheel melted. Map ----- +----------------------------------------------------+ | ??????????????????????????????????????????????? | | ??????????????????????????????????????????????? | | ??????????????????????????????????????????????? | | ??????????????????????????????????????????????? | | ??????????????????????????????????????????????? | | ??????????????????????????????????????????????? | | ??????????????????????????????????????????????? | | ??????????????????????????????????????????????? | | ??????????????????????????????????????????????? | | ??????????????????????????# ?????????????????? | | ?????????????????????????? ???????????????? | | ?????????????????????????? ????????????????? | | ????????????????"????????? ????????????????? | | ???????????????=%*???????? ?????????????????? | | ???????????????%= ####??## ?????????????????? | | ???????????????? ### #?????????????????? | | ????????????????? ##????????????????? | | ?????????????????? * ##???????????????? | | ???????????????????# %! #???????????????? | | ???????????????????? & ????????????????? | | ????????????????????? ?????????????????? | | ??????????????????????# #??????????????????? | | ?????????????????##???# #??????????????????? | | ????????????????## ##= #####??????????????? | | ????????????????# # #??????????????? | | ????????????????# % @ #??????????????? | | ????????????????## R #??????????????? | | ?????????????????### #??????????????? | | ???????????????????# # ### ##?????????????? | | ???????????????????# ## ?## #?????????????? | | ?????????????????? ??####?#[" #?????????????? | | ?????????????????# ???????#""##?????????????? | | ?????????????????# ????????##"#??????????????? | | ?????????????????# ??????###""#??????????????? | | ????????????????? ???????#""##"#?????????????? | | ????????????????# ???????#""###??????????????? | | ?????????????????#??????#?##""#???????????????? | | ????????##?????????????? ##""##???????????????? | | ???????## #?????????????### "##???????????????? | | ???????# #????????#####"##""#???????????????? | | ????#### ??????##"#""""""##???????????????? | | ????# #######"#"##""###????????????????? | | ##### #" "#"#"###"# ?????????????????? | | "#"#?#"##?????????????????? | | % "#?##"#?????????????????? | | & ####""##????????????????? | | ??# % "## ####""##?????????????????? | | ??# ###?# "# ?????????????????? | | ??# ##" ""##?## ##?????????????????? | | ??# ????# " " ### *%###???????????????? | +----------------------------------------------------+ Best States ------------- Heat Dissipation 39 Energy Generation 14 Energy Capacity 280 Matter Stores 300 Matter Capacity 300 Sight Range 16 Terrain Scan Density 10 Resistance: KI 35 Resistance: TH 35 Resistance: EX 35 Resistance: EM 35 Resistance: I 35 Resistance: S 35 Resistance: P 35 Evasion (%) 50 Recoil Reduction 2 Offensive Hacking 20 Item Schematics ----------------- None Robot Schematics ------------------ None Fabricated ------------ Nothing Repaired ---------- Nothing Studied --------- None Alien Tech Used ----------------- None Achievements -------------- None Challenges ------------ None Game ------ Seed BoltBehemothCanceller Manual? 0 Play Time 00:32:45 Cumulative 196.5 hours Start 2025.12.12 @ 14:59:31 End 2025.12.12 @ 15:27:26 Sessions 1 Manual Loads 0 Difficulty Explorer Special Mode None Game No. 289 Rogue 0 Adventurer 0 Explorer 289 Win Type - Total 0 Types 0/0/0/0/0/0/0/0/0/0 Lore% 71 Gallery% 67 Achievement% 53 Wizard Run 0 Options --------- Layout 1 ASCII 0 Keyboard 0 Movement Mouse Keybinds 0 Fullscreen 1 Font 24/Smallcaps Map View 50x35 Zoom Use 0% Tactical HUD 1 Map Filters NONE Filters NONE Steam 1 RUN: c037403f-05e3-41f9-9119-9fa215ce1714